bitfinex/quotes_SOLUSD_20250805
["timestamp","ask_amount","ask_price","bid_price","bid_amount"]
[1754426638196,7.93226632,162.79,162.78,0.06]
[1754426638900,7.93226632,162.79,162.78,0.76]
[1754426639469,7.93226632,162.79,162.78,0.06]
[1754426645108,8.65226632,162.79,162.78,0.06]
[1754426646905,14.79514978,162.79,162.78,0.06]
[1754426647086,58.05514978,162.79,162.78,0.06]
[1754426648215,51.19226632,162.79,162.78,0.06]
[1754426649491,51.19226632,162.79,162.78,0.74]
[1754426651094,51.19226632,162.79,162.78,0.06]
[1754426653205,7.93226632,162.79,162.78,0.74]
[1754426655420,7.93226632,162.79,162.78,0.06]
[1754426656593,43.26,162.81,162.78,0.06]
[1754426656594,7.93226632,162.83,162.78,8.67226632]
[1754426656896,7.93226632,162.83,162.8,0.14216157]
[1754426657234,7.93226632,162.84,162.81,0.68]
[1754426657522,7.93226632,162.84,162.82,6.82162357]
[1754426658016,7.93226632,162.83,162.82,0.68]
[1754426658322,7.93226632,162.83,162.81,6.14205894]
[1754426658823,7.93226632,162.83,162.81,6.82205894]
[1754426660399,72.35089232,162.86,162.82,0.68]
[1754426660720,7.93226632,162.84,162.83,0.68]
[1754426660916,7.93226632,162.84,162.81,6.82205894]
[1754426661225,7.93226632,162.84,162.82,0.68]
[1754426661607,7.93226632,162.83,162.8,6.28456242]
[1754426661802,7.93226632,162.82,162.8,6.28456242]
[1754426661994,7.93226632,162.82,162.8,6.96456242]
[1754426663089,7.93226632,162.81,162.78,0.06]
[1754426663309,7.93226632,162.79,162.78,0.06]
[1754426665066,18.89859101,162.79,162.78,0.06]
[1754426665868,33.93226632,162.78,162.77,0.06]
[1754426666157,38.75570755,162.78,162.77,0.06]
[1754426666654,44.89896839,162.78,162.77,0.06]
[1754426668323,50.05269912,162.78,162.77,0.06]
[1754426668712,43.18943828,162.78,162.77,0.06]
[1754426668918,38.03570755,162.78,162.77,0.74]
[1754426669444,38.03570755,162.78,162.77,0.06]
[1754426671357,38.75570755,162.78,162.77,0.06]
[1754426672225,12.03570755,162.78,162.77,0.74]
[1754426672540,4.10344123,162.78,162.77,0.88216157]
[1754426673338,7.93226632,162.79,162.77,0.88216157]
[1754426673536,4.10344123,162.78,162.77,6.34563112]
[1754426674231,4.10344123,162.78,162.77,7.02563112]
[1754426676257,69.26,162.82,162.78,0.14216157]
[1754426676551,4.13201856,162.81,162.79,0.68]
[1754426676728,4.13201856,162.8,162.79,0.82216157]
[1754426677328,7.93226632,162.81,162.79,6.96504503]
[1754426677527,7.93226632,162.81,162.8,0.68]
[1754426677847,12.06382074,162.81,162.8,0.68]
[1754426678460,12.06382074,162.81,162.79,6.28504503]
[1754426678758,7.93226632,162.82,162.79,6.96504503]
[1754426678955,4.13111927,162.81,162.8,0.68]
[1754426679453,7.93226632,162.82,162.8,23.88]
[1754426679629,12.06338559,162.82,162.8,23.88]
[1754426679829,4.13111927,162.81,162.8,23.88]
[1754426680057,7.93226632,162.82,162.8,23.88]
[1754426680268,12.06338559,162.82,162.8,23.88]
[1754426680429,4.13111927,162.81,162.8,23.88]
[1754426680627,12.71338559,162.81,162.8,23.2]
[1754426680939,12.06338559,162.81,162.8,23.2]
[1754426681139,7.93226632,162.81,162.8,23.2]
[1754426681329,12.06338559,162.81,162.8,23.2]
[1754426681648,7.93226632,162.81,162.8,23.2]
[1754426681854,12.06338559,162.81,162.8,23.2]
[1754426682220,4.13111927,162.82,162.8,30.02250614]
[1754426682426,4.13111927,162.83,162.8,29.34250614]
[1754426682637,4.13111927,162.82,162.8,29.34250614]
[1754426682841,4.13111927,162.82,162.81,0.68]
[1754426683222,12.09338559,162.83,162.81,0.68]
[1754426683654,12.09338559,162.83,162.81,6.14196445]
[1754426683956,4.16111927,162.83,162.82,0.68]
[1754426684129,0.03,162.83,162.82,23.88]
[1754426684330,4.16111927,162.83,162.82,23.88]
[1754426684535,0.03,162.83,162.82,23.88]
[1754426684744,4.16111927,162.83,162.82,23.88]
[1754426684946,0.03,162.83,162.82,8.75442789]
[1754426685257,0.03,162.83,162.82,24.1449666]
[1754426685453,9.64360634,162.85,162.84,0.28432314]
[1754426685637,9.64360634,162.85,162.84,8.35875103]
[1754426685845,9.64360634,162.85,162.84,15.17974832]
[1754426686156,0.03,162.9,162.86,0.28432314]
[1754426686337,0.03,162.9,162.88,0.14216157]
[1754426686744,0.03,162.9,162.88,0.82216157]
[1754426687137,0.03,162.9,162.89,0.68]
[1754426687730,0.03,162.9,162.89,6.81911228]
[1754426687931,0.03,162.9,162.89,7.24559699]
[1754426688166,0.03,162.9,162.89,30.28407888]
[1754426689441,7.96226632,162.9,162.88,6.13937384]
[1754426689642,8.58226632,162.89,162.86,6.14024315]
[1754426689834,7.93226632,162.87,162.86,6.14024315]
[1754426690156,7.93226632,162.87,162.86,6.28240472]
[1754426691039,8.58226632,162.87,162.84,6.14099729]
[1754426691245,7.93226632,162.85,162.84,6.14099729]
[1754426691659,7.93226632,162.85,162.84,6.96315886]
[1754426691862,7.93226632,162.87,162.84,6.96315886]
[1754426692058,7.93226632,162.87,162.86,0.14216157]
[1754426692858,7.93226632,162.87,162.84,6.14091226]
[1754426693067,7.93226632,162.85,162.84,0.14216157]
[1754426694664,0.65,162.89,162.84,6.28282891]
[1754426694837,26.0,162.88,162.84,6.28282891]
[1754426695165,7.93226632,162.86,162.85,0.14216157]
[1754426696856,7.93226632,162.86,162.85,6.96278177]
[1754426697359,7.93226632,162.86,162.85,6.28278177]
[1754426697744,7.93226632,162.87,162.85,6.28278177]
[1754426697966,7.93226632,162.87,162.85,6.96278177]
[1754426699367,7.93226632,162.86,162.85,6.28278177]
[1754426700165,7.93226632,162.86,162.85,23.2]
[1754426700739,8.58226632,162.86,162.85,23.2]
[1754426702065,7.93226632,162.87,162.85,30.0206202]
[1754426702368,7.93226632,162.86,162.85,30.0206202]
[1754426702566,7.93226632,162.87,162.85,30.16278177]
[1754426702776,7.93226632,162.87,162.86,0.68]
[1754426703764,7.93226632,162.87,162.86,6.82024315]
[1754426704063,7.93226632,162.87,162.86,6.14024315]
[1754426704468,8.61226632,162.87,162.85,29.54272835]
[1754426704647,8.61226632,162.86,162.85,23.26]
[1754426705043,8.61226632,162.86,162.85,0.06]
[1754426706251,57.99250947,162.86,162.85,0.06]
[1754426706465,62.09967206,162.86,162.85,0.06]
[1754426706666,7.93226632,162.84,162.83,0.06]
[1754426707173,8.61226632,162.84,162.83,0.06]
[1754426707375,23.71848189,162.84,162.77,0.06]
[1754426707551,7.93226632,162.78,162.77,0.06]
[1754426709992,8.61226632,162.78,162.77,0.06]
[1754426710177,14.75552716,162.78,162.77,0.06]
[1754426710696,7.93226632,162.78,162.77,0.06]
[1754426710991,7.93226632,162.78,162.77,0.74]
[1754426712082,7.93226632,162.78,162.77,6.20363826]
[1754426712371,51.19226632,162.79,162.77,6.88363826]
[1754426712868,7.93226632,162.78,162.77,6.88363826]
[1754426713075,7.93226632,162.78,162.77,6.20363826]
[1754426713991,7.93226632,162.78,162.77,0.06]
[1754426714491,43.26,162.79,162.77,0.74]
[1754426714671,51.19226632,162.79,162.77,0.74]
[1754426714875,51.19226632,162.79,162.77,23.94]
[1754426715765,43.26,162.79,162.77,23.26]
[1754426715952,43.26,162.79,162.78,0.68]
[1754426716170,7.93226632,162.81,162.79,6.14288346]
[1754426716360,7.93226632,162.81,162.79,6.82288346]
[1754426718058,43.26,162.82,162.79,0.68]
[1754426718282,7.93226632,162.81,162.79,0.68]
[1754426719376,7.93226632,162.8,162.77,29.54579983]
[1754426719575,7.93226632,162.78,162.77,23.26]
[1754426719886,8.61226632,162.78,162.77,0.06]
[1754426720472,7.93226632,162.78,162.77,0.06]
[1754426720681,51.19226632,162.79,162.77,0.74]
[1754426720978,7.93226632,162.8,162.77,0.74]
[1754426721181,7.93226632,162.8,162.78,0.68]
[1754426721679,7.93226632,162.8,162.77,0.20216157]
[1754426721882,7.93226632,162.79,162.77,0.20216157]
[1754426722055,7.93226632,162.79,162.77,6.34543387]
[1754426722483,43.26,162.81,162.79,0.14216157]
[1754426722672,7.93226632,162.82,162.8,0.68]
[1754426723184,7.93226632,162.81,162.79,0.14216157]
[1754426723381,7.93226632,162.8,162.79,0.14216157]
[1754426723599,7.93226632,162.8,162.77,29.4032723]
[1754426723771,7.93226632,162.79,162.77,29.4032723]
[1754426724260,7.93226632,162.78,162.77,29.54543387]
[1754426724594,7.93226632,162.78,162.77,6.34543387]
[1754426725087,43.94,162.81,162.77,6.34543387]
[1754426725088,7.93226632,162.79,162.77,6.34543387]
[1754426725296,51.19226632,162.81,162.78,0.68]
[1754426726201,7.93226632,162.8,162.78,0.68]
[1754426726485,7.93226632,162.79,162.77,0.06]
[1754426726683,7.93226632,162.78,162.77,0.06]
[1754426726888,7.93226632,162.78,162.77,6.20358937]
[1754426727191,7.93226632,162.79,162.77,6.20358937]
[1754426727386,7.93226632,162.8,162.77,6.20358937]
[1754426727613,7.93226632,162.8,162.77,6.88358937]
[1754426727897,7.93226632,162.8,162.78,0.68]
[1754426728693,7.93226632,162.8,162.78,6.82296196]
[1754426729195,7.93226632,162.8,162.78,6.14296196]
[1754426729559,7.93226632,162.8,162.78,29.34296196]
[1754426730909,7.93226632,162.79,162.78,23.2]
[1754426731592,7.93226632,162.79,162.78,29.34326084]
[1754426731798,7.93226632,162.8,162.78,29.34326084]
[1754426732100,7.93226632,162.8,162.78,30.02326084]
[1754426732672,7.93226632,162.8,162.78,29.34326084]
[1754426734391,7.93226632,162.8,162.78,30.01326084]
[1754426734567,51.19226632,162.81,162.78,30.01326084]
[1754426734970,51.19226632,162.81,162.79,0.67]
[1754426735190,7.93226632,162.81,162.78,30.01326084]
[1754426736691,7.93226632,162.81,162.79,0.67]
[1754426737702,7.93226632,162.81,162.8,6.14250614]
[1754426738784,4.1221251,162.82,162.8,6.81250614]
[1754426738988,12.05439142,162.82,162.8,30.01250614]
[1754426739303,7.93226632,162.82,162.8,30.01250614]
[1754426739501,7.96226632,162.84,162.81,0.67]
[1754426739702,7.96226632,162.84,162.82,0.67]
[1754426739703,12.08465329,162.84,162.82,0.67]
[1754426739906,7.96226632,162.84,162.82,0.67]
[1754426741293,12.0843804,162.84,162.82,0.67]
[1754426741882,12.0843804,162.84,162.82,6.81143674]
[1754426742200,51.90226632,162.83,162.81,29.34208449]
[1754426742402,7.93226632,162.82,162.81,29.34208449]
[1754426742580,8.64226632,162.82,162.81,29.34208449]
[1754426742974,8.64226632,162.82,162.81,23.2]
[1754426743900,7.93226632,162.82,162.81,29.34212886]
[1754426744101,0.03,162.84,162.81,30.15429043]
[1754426744405,4.12359668,162.83,162.82,0.67]
[1754426744790,4.12359668,162.83,162.82,24.01216157]
[1754426745006,4.15359668,162.84,162.82,24.01216157]
[1754426745301,0.03,162.84,162.83,0.67]
[1754426746182,0.03,162.84,162.83,6.81137443]
[1754426746498,0.03,162.85,162.84,0.42648471]
[1754426747015,0.03,162.85,162.84,1.09648471]
[1754426747376,0.03,162.85,162.84,9.02875103]
[1754426748196,0.03,162.85,162.84,15.16974832]
[1754426750410,12.08833482,162.9,162.84,30.52224156]
[1754426750588,0.03,162.9,162.85,8.60226632]
[1754426750787,0.03,162.9,162.87,0.14216157]
[1754426751100,0.03,162.9,162.87,0.81216157]
[1754426751301,4.14873415,162.9,162.87,0.81216157]
[1754426751484,12.08100047,162.9,162.87,0.81216157]
[1754426751678,7.96226632,162.9,162.87,0.81216157]
[1754426752191,8.67226632,162.9,162.87,0.14216157]
[1754426752588,8.67226632,162.9,162.88,6.13948919]
[1754426752800,8.67226632,162.9,162.88,29.33948919]
[1754426753505,0.03,162.9,162.88,29.33948919]
[1754426753708,0.03,162.9,162.89,0.81216157]
[1754426754403,0.03,162.9,162.89,0.14216157]
[1754426754605,0.03,162.9,162.89,6.95127385]
[1754426755506,0.03,162.9,162.89,6.28127385]
[1754426755696,0.03,162.9,162.89,6.95127385]
[1754426756089,8.67226632,162.9,162.88,0.14216157]
[1754426756282,8.67226632,162.9,162.87,6.13986615]
[1754426756512,7.93226632,162.89,162.87,29.33986615]
[1754426757394,8.64226632,162.88,162.85,23.2]
[1754426757595,7.93226632,162.87,162.85,29.34031772]
[1754426758597,7.93226632,162.88,162.85,30.01031772]
[1754426760991,8.64226632,162.87,162.85,23.2]
[1754426761205,7.93226632,162.86,162.85,29.34061493]
[1754426761398,8.64226632,162.87,162.85,6.14061493]
[1754426761725,7.93226632,162.87,162.85,6.14061493]
[1754426763627,8.62226632,162.86,162.83,23.2]
[1754426763812,4.10554676,162.89,162.79,0.72]
[1754426763813,7.93226632,162.84,162.79,0.72]
[1754426764120,7.93226632,162.8,162.78,0.06]
[1754426764288,7.93226632,162.8,162.78,0.20216157]
[1754426764492,0.69,162.87,162.8,15.10621557]
[1754426764702,7.93226632,162.85,162.81,1.00432314]
[1754426764904,7.93226632,162.84,162.82,0.14216157]
[1754426765710,7.93226632,162.84,162.83,6.283536]
[1754426766229,7.93226632,162.85,162.83,6.283536]
[1754426767815,7.93226632,162.84,162.83,6.283536]
[1754426768896,7.93226632,162.84,162.82,6.14167134]
[1754426769098,7.93226632,162.83,162.82,6.28383291]
[1754426769314,7.93226632,162.83,162.82,29.48383291]
[1754426769996,0.69,162.86,162.82,29.48383291]
[1754426770196,7.93226632,162.84,162.82,30.20383291]
[1754426770500,7.93226632,162.84,162.82,29.48383291]
[1754426771091,7.93226632,162.84,162.82,30.20383291]
[1754426773800,7.93226632,162.84,162.82,29.48383291]
[1754426774001,4.11047366,162.87,162.83,6.86137443]
[1754426774324,12.50387602,162.86,162.84,0.72]
[1754426774503,4.5716097,162.85,162.84,0.72]
[1754426774929,12.50387602,162.85,162.83,29.34137443]
[1754426775221,12.50387602,162.84,162.83,23.2]
[1754426776226,12.50387602,162.84,162.83,30.06137443]
[1754426776828,4.5716097,162.84,162.83,30.06137443]
[1754426777331,7.93226632,162.85,162.83,30.203536]
[1754426777502,7.93226632,162.86,162.84,0.86216157]
[1754426777702,4.57271194,162.85,162.84,0.14216157]
[1754426778415,4.57271194,162.85,162.84,29.48315886]
[1754426778614,12.50497826,162.85,162.84,23.2]
[1754426778932,13.19497826,162.85,162.84,23.2]
[1754426779226,12.50497826,162.85,162.84,23.2]
[1754426780922,17.31308479,162.85,162.84,23.2]
[1754426781111,16.62308479,162.85,162.84,23.2]
[1754426782359,23.45370499,162.85,162.84,23.2]
[1754426782729,23.45370499,162.85,162.81,0.06]
[1754426782920,7.93226632,162.82,162.81,0.06]
[1754426783248,12.50497826,162.82,162.81,0.06]
[1754426784627,7.93226632,162.82,162.81,0.06]
[1754426784811,12.50757262,162.82,162.81,0.06]
[1754426785430,13.19757262,162.82,162.81,0.06]
[1754426785736,17.31531006,162.82,162.81,0.06]
[1754426786028,16.62531006,162.82,162.81,0.06]
[1754426786435,17.31531006,162.82,162.81,0.06]
[1754426787641,16.62531006,162.82,162.81,0.06]
[1754426788918,23.45706168,162.82,162.81,0.06]
[1754426790836,26.0,162.79,162.78,0.06]
[1754426791157,92.00819352,162.79,162.78,0.06]
[1754426791521,92.69819352,162.79,162.78,0.06]
[1754426793518,86.55531006,162.79,162.78,0.06]
[1754426793720,92.69819352,162.79,162.78,0.06]
[1754426794471,92.69819352,162.79,162.77,0.06]
[1754426794750,26.0,162.74,162.7,6.81604817]
[1754426794956,7.93226632,162.71,162.7,0.67]
[1754426795337,26.0,162.75,162.71,0.42648471]
[1754426795544,33.93226632,162.75,162.73,0.14216157]
[1754426795720,7.93226632,162.74,162.73,0.14216157]
[1754426796329,26.0,162.75,162.73,6.95730997]
[1754426796626,33.93226632,162.75,162.74,0.67]
[1754426796820,7.93226632,162.75,162.74,0.67]
[1754426797050,43.24,162.8,162.75,0.14216157]
[1754426797231,43.24,162.8,162.77,0.14216157]
[1754426797232,7.93226632,162.8,162.77,0.14216157]
[1754426797431,7.93226632,162.79,162.78,0.67]
[1754426797745,33.93226632,162.79,162.76,0.67]
[1754426798060,7.93226632,162.77,162.76,0.67]
[1754426798629,7.93226632,162.77,162.74,23.34216157]
[1754426798630,7.93226632,162.77,162.75,6.14423929]
[1754426798831,7.93226632,162.77,162.75,6.81423929]
[1754426799369,33.93226632,162.79,162.76,0.81216157]
[1754426799868,7.93226632,162.78,162.77,0.67]
[1754426802142,7.93226632,162.78,162.77,6.81363826]
[1754426802342,26.0,162.79,162.77,6.81363826]
[1754426802581,7.93226632,162.78,162.77,6.14363826]
[1754426803294,7.93226632,162.78,162.77,6.81363826]
[1754426803957,7.93226632,162.78,162.77,6.14363826]
[1754426804358,26.0,162.79,162.77,6.81363826]
[1754426804777,33.93226632,162.79,162.78,0.67]
[1754426805789,43.24,162.82,162.79,0.14216157]
[1754426805790,7.93226632,162.82,162.79,0.14216157]
[1754426805961,7.93226632,162.81,162.8,0.67]
[1754426807174,7.93226632,162.81,162.8,6.81250614]
[1754426809383,26.0,162.83,162.8,6.81250614]
[1754426809559,7.93226632,162.82,162.8,6.81250614]
[1754426809896,7.93226632,162.82,162.81,0.67]
[1754426810072,7.93226632,162.82,162.8,6.14250614]
[1754426810381,7.93226632,162.82,162.8,6.81250614]
[1754426810892,0.72,162.87,162.81,0.81216157]
[1754426811186,7.93226632,162.85,162.81,24.01216157]
[1754426811360,7.93226632,162.85,162.81,23.2]
[1754426811361,7.93226632,162.82,162.81,23.2]
[1754426811561,7.93226632,162.82,162.79,73.25275195]
[1754426811862,7.93226632,162.81,162.79,30.01275195]
[1754426812065,7.96226632,162.82,162.79,30.01275195]
[1754426813180,7.96226632,162.82,162.79,29.34275195]
[1754426813371,7.96226632,162.82,162.8,0.67]
[1754426814078,7.96226632,162.82,162.8,6.81232148]
[1754426815370,7.96226632,162.82,162.8,30.01232148]
[1754426818288,7.96226632,162.82,162.8,6.81232148]
[1754426819591,33.93226632,162.81,162.78,6.14309314]
[1754426819939,7.93226632,162.79,162.75,0.73]
[1754426820077,7.93226632,162.77,162.75,0.73]
[1754426820684,33.93226632,162.78,162.76,6.95609646]
[1754426820896,33.93226632,162.78,162.76,6.28609646]
[1754426821098,33.93226632,162.78,162.77,0.67]
[1754426822816,51.17226632,162.81,162.78,0.14216157]
[1754426823130,7.93226632,162.81,162.79,0.67]
[1754426823510,7.93226632,162.8,162.79,0.81216157]
[1754426824436,7.93226632,162.8,162.79,0.14216157]
[1754426824721,7.93226632,162.8,162.79,6.28504503]
[1754426825702,7.93226632,162.8,162.79,6.97504503]
[1754426826200,50.03,162.82,162.8,0.14216157]
[1754426826421,7.93226632,162.81,162.8,0.14216157]
[1754426826994,7.93226632,162.81,162.8,6.97466771]
[1754426827196,7.93226632,162.81,162.8,30.17466771]
[1754426828129,7.93226632,162.81,162.8,29.48466771]
[1754426831138,7.93226632,162.81,162.8,30.17466771]
[1754426833035,57.96226632,162.82,162.8,30.17466771]
[1754426833232,0.03,162.81,162.8,30.17466771]
[1754426835531,7.96226632,162.81,162.8,29.48466771]
[1754426835922,7.96226632,162.81,162.8,30.17466771]
[1754426837517,8.67226632,162.81,162.8,23.34216157]
[1754426837722,8.67226632,162.81,162.8,29.48466771]
[1754426838017,7.96226632,162.81,162.8,29.48466771]
[1754426838836,0.03,162.81,162.8,30.17466771]
[1754426839338,0.03,162.81,162.8,30.45899085]
[1754426840138,50.03,162.82,162.81,15.39053871]
[1754426840325,50.03,162.82,162.81,24.1549666]
[1754426841338,50.03,162.82,162.81,48.73877346]
[1754426842013,0.03,162.83,162.82,0.14216157]
[1754426842248,0.03,162.83,162.82,52.00442789]
[1754426843335,0.03,162.83,162.82,58.14617951]
[1754426844943,0.03,162.83,162.82,81.34617951]
[1754426847250,0.03,162.83,162.82,107.34617951]
[1754426848148,0.03,162.83,162.82,125.78559051]
[1754426850841,7.96226632,162.88,162.84,6.567482]
[1754426851133,8.67226632,162.88,162.86,0.14216157]
[1754426851535,8.64226632,162.87,162.84,29.31099729]
[1754426851744,7.93226632,162.85,162.84,29.45315886]
[1754426851954,8.64226632,162.85,162.82,8.642266]
[1754426852148,7.93226632,162.83,162.78,23.07]
[1754426852344,7.93226632,162.79,162.78,43.22]
[1754426852537,7.93226632,162.79,162.78,43.36216157]
[1754426852755,8.64226632,162.79,162.78,43.36216157]
[1754426852952,0.71,162.81,162.79,0.14216157]
[1754426853259,7.93226632,162.8,162.79,0.14216157]
[1754426853438,0.71,162.81,162.79,0.14216157]
[1754426853439,7.93226632,162.81,162.79,0.14216157]
[1754426853640,7.93226632,162.84,162.81,0.14216157]
[1754426853954,8.65226632,162.84,162.81,0.14216157]
[1754426855146,7.93226632,162.82,162.8,49.36239732]
[1754426855348,7.93226632,162.82,162.8,49.50455889]
[1754426855349,7.93226632,162.81,162.8,49.50455889]
[1754426855539,7.93226632,162.81,162.8,49.36239732]
[1754426855754,7.93226632,162.81,162.8,6.14239732]
[1754426855936,7.93226632,162.81,162.8,6.28455889]
[1754426857678,7.93226632,162.81,162.8,0.14216157]
[1754426857836,8.65226632,162.81,162.8,0.14216157]
[1754426860446,8.65226632,162.81,162.79,0.06]
[1754426860761,8.65226632,162.8,162.79,0.06]
[1754426865854,12.75906327,162.8,162.79,0.06]
[1754426870179,18.90156941,162.8,162.79,0.06]
[1754426870359,26.83383573,162.8,162.79,0.06]
[1754426871278,41.09832497,162.8,162.79,0.06]
[1754426871953,7.93226632,162.76,162.75,0.06]
[1754426872282,26.0,162.73,162.68,6.83691731]
[1754426872471,7.93226632,162.69,162.68,30.07907888]
[1754426872781,7.93226632,162.69,162.68,23.79]
[1754426872987,7.93226632,162.69,162.68,23.93216157]
[1754426873299,7.93226632,162.69,162.68,23.24216157]
[1754426873452,7.93226632,162.69,162.66,0.69]
[1754426873659,7.93226632,162.68,162.67,0.14216157]
[1754426874283,7.93226632,162.68,162.67,0.69]
[1754426874660,7.93226632,162.68,162.67,0.83216157]
[1754426874861,7.93226632,162.68,162.67,6.97957658]
[1754426875279,7.93226632,162.68,162.67,0.14216157]
[1754426876273,7.93226632,162.68,162.66,0.14216157]
[1754426876471,7.93226632,162.67,162.66,0.14216157]
[1754426877182,7.93226632,162.67,162.66,0.20216157]
[1754426878184,7.93226632,162.67,162.66,0.06]
[1754426878387,8.65226632,162.67,162.66,0.06]
[1754426879204,23.69968094,162.67,162.66,0.06]
[1754426880292,16.83226593,162.67,162.66,0.06]
[1754426880669,8.89999961,162.67,162.66,0.75]
[1754426880894,16.83226593,162.67,162.66,0.75]
[1754426881098,16.83226593,162.67,162.66,0.06]
[1754426881263,17.55226593,162.67,162.66,0.06]
[1754426881474,7.93226632,162.67,162.66,0.06]
[1754426881699,7.93226632,162.67,162.66,0.75]
[1754426882503,7.93226632,162.67,162.66,0.06]
[1754426885169,7.93226632,162.67,162.66,0.76]
[1754426885678,7.93226632,162.67,162.66,0.06]
[1754426888091,7.93226632,162.67,162.66,6.90779294]
[1754426888487,17.54826595,162.68,162.66,7.04995451]
[1754426888822,7.93226632,162.67,162.66,0.06]
[1754426889499,7.93226632,162.67,162.66,6.90779294]
[1754426889685,7.93226632,162.67,162.66,0.06]
[1754426890703,8.63226632,162.67,162.66,0.06]
[1754426891774,7.93226632,162.67,162.66,0.06]
[1754426891999,7.93226632,162.67,162.66,0.76]
[1754426892315,7.93226632,162.67,162.66,0.06]
[1754426892804,7.93226632,162.67,162.66,6.90779294]
[1754426893781,9.61599963,162.68,162.66,6.90779294]
[1754426894086,7.93226632,162.67,162.66,6.90779294]
[1754426894813,9.61599963,162.68,162.67,0.14216157]
[1754426894986,9.61599963,162.68,162.67,0.84216157]
[1754426896407,9.61599963,162.68,162.67,6.98957658]
[1754426898085,9.61599963,162.68,162.67,30.08957658]
[1754426899016,17.54826595,162.68,162.67,29.38957658]
[1754426899229,9.61599963,162.68,162.67,30.08957658]
[1754426900217,9.61599963,162.68,162.67,30.37389972]
[1754426900518,9.61599963,162.68,162.67,45.48011529]
[1754426901225,9.61599963,162.68,162.67,53.41238161]
[1754426901809,69.97,162.75,162.67,68.78091913]
[1754426901810,7.96226632,162.75,162.67,68.78091913]
[1754426902011,7.93226632,162.74,162.7,0.28432314]
[1754426902214,7.93226632,162.73,162.72,0.14216157]
[1754426902389,7.93226632,162.73,162.72,6.28768762]
[1754426902717,8.63226632,162.73,162.71,6.14577677]
[1754426902896,8.63226632,162.72,162.69,23.1]
[1754426903102,8.63226632,162.71,162.69,23.1]
[1754426903592,7.93226632,162.7,162.69,23.1]
[1754426903787,7.93226632,162.7,162.69,29.24657307]
[1754426903992,7.93226632,162.7,162.69,29.38873464]
[1754426904289,8.63226632,162.7,162.68,6.14697721]
[1754426904493,8.63226632,162.69,162.66,6.20778239]
[1754426904703,7.93226632,162.67,162.66,6.20778239]
[1754426905223,7.93226632,162.69,162.67,0.14216157]
[1754426906006,7.93226632,162.69,162.67,6.28920911]
[1754426906616,7.93226632,162.68,162.66,6.20774163]
[1754426906922,7.93226632,162.67,162.66,0.06]
[1754426907421,8.63226632,162.67,162.66,0.06]
[1754426908117,14.77968133,162.67,162.66,0.06]
[1754426909217,18.86223413,162.67,162.66,0.06]
[1754426910193,26.0,162.65,162.64,0.06]
[1754426910425,38.01481912,162.65,162.64,0.06]
[1754426910609,38.71481912,162.65,162.64,0.06]
[1754426911523,26.0,162.65,162.64,0.76]
[1754426911726,0.7,162.72,162.65,0.14216157]
[1754426911897,44.0,162.72,162.66,0.7]
[1754426912101,7.93226632,162.67,162.66,6.14779294]
[1754426912413,7.93226632,162.67,162.65,6.29019305]
[1754426912815,7.93226632,162.67,162.65,6.14803148]
[1754426913137,8.63226632,162.66,162.64,23.16]
[1754426913319,8.63226632,162.65,162.64,23.16]
[1754426913642,8.63226632,162.65,162.64,0.06]
[1754426913810,12.7172298,162.65,162.64,0.06]
[1754426914137,18.86540071,162.65,162.64,0.06]
[1754426916337,62.20540071,162.65,162.64,0.06]
[1754426916501,26.0,162.62,162.57,0.14216157]
[1754426916702,7.93226632,162.58,162.57,0.14216157]
[1754426916922,7.93226632,162.58,162.57,0.84216157]
[1754426917105,7.93226632,162.58,162.57,0.14216157]
[1754426917318,8.60226632,162.58,162.53,0.7]
[1754426917629,7.93226632,162.55,162.54,6.99349557]
[1754426917937,0.67,162.64,162.56,0.28432314]
[1754426918137,7.93226632,162.62,162.58,0.14216157]
[1754426918307,12.02421043,162.62,162.59,6.85043975]
[1754426918509,12.02421043,162.62,162.6,0.7]
[1754426918706,7.93226632,162.62,162.6,0.7]
[1754426920005,7.93226632,162.62,162.59,6.15043975]
[1754426920210,7.93226632,162.61,162.59,6.85043975]
[1754426920613,7.93226632,162.61,162.6,0.7]
[1754426920913,7.93226632,162.62,162.6,0.7]
[1754426921132,7.93226632,162.62,162.6,0.14216157]
[1754426922021,7.93226632,162.62,162.6,6.29211245]